lending/lending_fUSD_20241212
["ID","MTS","AMOUNT","RATE_DAILY","PERIOD"]
[345106620,1734021050886,-150.0,0.00024888,2]
[345106621,1734021050898,-5000.0,0.00024891,2]
[345106622,1734021050909,-150.0,0.00024895,2]
[345106623,1734021050920,-500.0,0.00024898,2]
[345106624,1734021050931,-500.0,0.00024898,2]
[345106625,1734021050942,-500.0,0.00024898,2]
[345106626,1734021050953,-500.0,0.00024898,2]
[345106627,1734021050964,-500.0,0.00024898,2]
[345106628,1734021050975,-509.6,0.00024898,2]
[345106629,1734021050986,-505.05101496,0.00024898,2]
[345106630,1734021050997,-1832.99,0.00024898,2]
[345106631,1734021051008,-500.0,0.00024898,2]
[345106632,1734021051019,-500.0,0.00024898,2]
[345106633,1734021051032,-230.34,0.00024898,2]
[345106634,1734021051044,-500.0,0.00024898,2]
[345106635,1734021051056,-500.0,0.00024898,2]
[345106636,1734021051067,-500.0,0.00024898,2]
[345106637,1734021051078,-500.0,0.00024898,2]
[345106638,1734021051089,-1243.07,0.00024898,2]
[345106639,1734021051100,-6531.9,0.00024898,120]
[345106640,1734021051111,-2766.6,0.00024898,2]
[345106641,1734021051122,-437.11000006,0.00024898,2]
[345106642,1734021051133,-1213.55,0.00024898,2]
[345106643,1734021051144,-1235.3,0.00024898,2]
[345106644,1734021051155,-500.0,0.00024898,2]
[345106645,1734021051167,-500.0,0.00024898,2]
[345106646,1734021051178,-289.83,0.00024898,2]
[345106647,1734021051418,-266.96315227,0.00024898,2]
[345106648,1734021051434,-988.4,0.000249,2]
[345106649,1734021051444,-2000.0,0.000249,2]
[345106650,1734021051453,-150.0,0.000249,2]
[345106651,1734021051463,-300.0,0.000249,9]
[345106652,1734021051472,-1500.0,0.00024902,2]
[345106653,1734021051482,-150.0,0.00024907,2]
[345106654,1734021051491,-150.0,0.00024913,2]
[345106655,1734021051500,-237.18024433,0.00024918,2]
[345106656,1734021051509,-500.0,0.00024922,2]
[345106657,1734021051520,-500.0,0.00024923,2]
[345106658,1734021051530,-500.0,0.00024923,2]
[345106659,1734021051540,-500.0,0.00024923,2]
[345106660,1734021051551,-500.0,0.00024923,2]
[345106661,1734021051560,-500.0,0.00024923,2]
[345106662,1734021051571,-500.0,0.00024923,2]
[345106663,1734021051580,-500.0,0.00024923,2]
[345106664,1734021051590,-500.0,0.00024923,2]
[345106665,1734021051599,-500.0,0.00024923,2]
[345106666,1734021051609,-556.9,0.00024923,2]
[345106667,1734021051619,-974.95,0.00024923,2]
[345106668,1734021051629,-618.23,0.00024923,2]
[345106669,1734021051639,-500.0,0.00024923,2]
[345106670,1734021051649,-500.0,0.00024923,2]
[345106671,1734021051667,-500.0,0.00024923,2]
[345106672,1734021051677,-1720.1,0.00024923,2]
[345106673,1734021051686,-500.0,0.00024923,2]
[345106674,1734021051695,-500.0,0.00024923,2]
[345106675,1734021051706,-500.0,0.00024923,2]
[345106676,1734021051716,-501.87735128,0.00024923,2]
[345106677,1734021051725,-206.47317441,0.00024923,2]
[345106678,1734021051735,-500.0,0.00024923,2]
[345106679,1734021051745,-231.61110716,0.00024923,2]
[345106680,1734021051755,-500.0,0.00024923,2]
[345106681,1734021051765,-500.0,0.00024923,2]
[345106682,1734021051775,-500.0,0.00024923,2]
[345106683,1734021051784,-500.0,0.00024923,2]
[345106684,1734021051794,-750.8,0.00024923,2]
[345106685,1734021051804,-606.14455267,0.00024923,2]
[345106686,1734021051814,-506.07871349,0.00024923,2]
[345106687,1734021051823,-500.0,0.00024923,2]
[345106688,1734021051832,-650.98,0.00024923,2]
[345106689,1734021051841,-500.0,0.00024923,2]
[345106690,1734021051851,-631.19,0.00024923,2]
[345106691,1734021051860,-500.0,0.00024923,2]
[345106692,1734021051870,-500.0,0.00024923,2]
[345106693,1734021051879,-500.0,0.00024923,2]
[345106694,1734021051888,-649.78,0.00024923,2]
[345106695,1734021051898,-500.0,0.00024923,2]
[345106696,1734021051907,-2492.42,0.00024923,2]
[345106697,1734021051916,-500.0,0.00024923,2]
[345106698,1734021051926,-500.0,0.00024923,2]
[345106699,1734021051935,-500.0,0.00024923,2]
[345106700,1734021051944,-500.0,0.00024923,2]
[345106701,1734021051954,-500.0,0.00024923,2]
[345106702,1734021051964,-500.0,0.00024923,2]
[345106703,1734021051974,-500.0,0.00024923,2]
[345106704,1734021051984,-500.0,0.00024923,2]
[345106705,1734021051994,-500.0,0.00024923,2]
[345106706,1734021052003,-2062.1,0.00024923,2]
[345106707,1734021052013,-500.0,0.00024923,2]
[345106708,1734021052023,-332.78140525,0.00024923,2]
[345106709,1734021052032,-500.0,0.00024923,2]
[345106710,1734021052042,-500.0,0.00024923,2]
[345106711,1734021052051,-615.05045627,0.00024923,2]
[345106712,1734021052061,-500.0,0.00024923,2]
[345106713,1734021052070,-1973.88,0.00024923,2]
[345106714,1734021052080,-500.0,0.00024923,2]
[345106715,1734021052089,-555.50786863,0.00024923,2]
[345106716,1734021052099,-624.7,0.00024923,2]
[345106717,1734021052108,-500.0,0.00024923,2]
[345106718,1734021052117,-500.0,0.00024923,2]
[345106719,1734021052127,-151.26046623,0.00024923,2]
[345106720,1734021052136,-500.0,0.00024923,2]
[345106721,1734021052146,-500.0,0.00024923,2]
[345106722,1734021052155,-500.0,0.00024923,2]
[345106723,1734021052165,-500.0,0.00024923,2]
[345106724,1734021052174,-500.0,0.00024923,2]
[345106725,1734021052183,-500.0,0.00024923,2]
[345106726,1734021052193,-500.0,0.00024923,2]
[345106727,1734021052201,-553.86,0.00024923,2]
[345106728,1734021052210,-500.0,0.00024923,2]
[345106729,1734021052223,-500.0,0.00024923,2]
[345106730,1734021052232,-1290.74,0.00024923,2]
[345106731,1734021052242,-500.0,0.00024923,2]
[345106732,1734021052252,-500.0,0.00024923,2]
[345106733,1734021052262,-500.0,0.00024923,2]
[345106734,1734021052271,-1281.86,0.00024923,2]
[345106735,1734021052281,-500.0,0.00024923,2]
[345106736,1734021052291,-500.0,0.00024923,2]
[345106737,1734021052301,-500.0,0.00024923,2]
[345106738,1734021052311,-500.0,0.00024923,2]
[345106739,1734021052321,-5000.0,0.00024927,2]
[345106740,1734021052331,-500.0,0.00024928,2]
[345106741,1734021052340,-500.0,0.00024928,2]
[345106742,1734021052351,-500.0,0.00024928,2]
[345106743,1734021052365,-500.0,0.00024928,2]
[345106744,1734021052375,-750.0,0.00024928,2]
[345106745,1734021052385,-500.0,0.00024928,2]
[345106746,1734021052394,-646.36,0.00024928,2]
[345106747,1734021052404,-625.17,0.00024928,2]
[345106748,1734021052414,-1306.31,0.00024928,2]
[345106749,1734021052423,-500.0,0.00024928,2]
[345106750,1734021052433,-1247.24,0.00024928,2]
[345106751,1734021052442,-500.0,0.00024928,2]
[345106752,1734021052451,-649.16,0.00024928,2]
[345106753,1734021052461,-796.67,0.00024928,2]
[345106754,1734021052471,-500.0,0.00024928,2]
[345106755,1734021052479,-500.0,0.00024928,2]
[345106756,1734021052489,-1236.73,0.00024928,2]
[345106757,1734021052498,-229.97142579,0.00024928,2]
[345106758,1734021052507,-1078.44,0.00024928,2]
[345106759,1734021052516,-500.0,0.00024928,2]
[345106760,1734021052526,-500.0,0.00024928,2]
[345106761,1734021052536,-500.0,0.00024928,2]
[345106762,1734021052545,-600.0,0.00024928,2]
[345106763,1734021052554,-500.0,0.00024928,2]
[345106764,1734021052564,-150.0,0.00024929,2]
[345106765,1734021052574,-150.0,0.00024929,2]
[345106766,1734021052583,-150.0,0.0002493,120]
[345106767,1734021052593,-1276.5,0.00024931,2]
[345106768,1734021052602,-987.01,0.00024931,2]
[345106769,1734021052611,-175.36018145,0.00024931,2]
[345106770,1734021052620,-500.0,0.00024931,2]
[345106771,1734021052629,-1075.73,0.00024931,2]
[345106772,1734021052639,-150.0,0.00024932,2]
[345106773,1734021052648,-150.0,0.00024935,2]
[345106774,1734021052658,-5000.0,0.0002494,2]
[345106775,1734021052667,-1500.0,0.00024941,2]
[345106776,1734021052677,-161.23184659,0.00024942,2]
[345106777,1734021052687,-1500.0,0.00024949,2]
[345106778,1734021052696,-150.0,0.00024951,2]
[345106779,1734021052705,-150.0,0.00024953,2]
[345106780,1734021052715,-150.0,0.00024958,2]
[345106781,1734021052725,-5000.0,0.00024959,2]
[345106782,1734021052734,-163.0,0.0002496,120]
[345106783,1734021052743,-150.5,0.0002496,120]
[345106784,1734021052753,-372.0,0.0002496,120]
[345106785,1734021052763,-150.0,0.00024963,2]
[345106786,1734021052775,-163.0,0.0002497,120]
[345106787,1734021052790,-150.5,0.0002497,120]
[345106788,1734021052803,-372.0,0.0002497,120]
[345106789,1734021052812,-322.46390362,0.00024973,2]
[345106790,1734021052822,-399.81585027,0.00024973,2]
[345106791,1734021052832,-150.0,0.00024978,2]
[345106792,1734021052840,-163.0,0.0002498,120]
[345106793,1734021052849,-150.5,0.0002498,120]
[345106794,1734021052859,-372.0,0.0002498,120]
[345106795,1734021052868,-150.0,0.00024988,2]
[345106796,1734021052877,-150.0,0.00024988,2]
[345106797,1734021052887,-1963.05202227,0.0002499,7]
[345106798,1734021052897,-5000.0,0.0002499,2]
[345106799,1734021052906,-150.0,0.00024995,2]
[345106800,1734021052916,-300.0,0.00024999,10]
[345106801,1734021052925,-300.0,0.00024999,10]
[345106802,1734021052935,-300.0,0.00024999,10]
[345106803,1734021052944,-300.0,0.00024999,10]
[345106804,1734021052953,-300.0,0.00024999,10]
[345106805,1734021052962,-300.0,0.00024999,10]
[345106806,1734021052975,-300.0,0.00024999,10]
[345106807,1734021052984,-300.0,0.00024999,10]
[345106808,1734021052994,-2888.0,0.00024999,2]
[345106809,1734021053003,-500.0,0.00024999,2]
[345106810,1734021053012,-520.982423,0.00024999,2]
[345106811,1734021053022,-1339851.05759735,0.00025,120]
[345106812,1734021053032,-300.0,0.00025,7]
[345106813,1734021053044,-300.0,0.00025,7]
[345106814,1734021053053,-300.0,0.00025,7]
[345106815,1734021053062,-300.0,0.00025,7]
[345106816,1734021053072,-525.40813504,0.00025,7]
[345106817,1734021053081,-1023.33516,0.00025,60]
[345106818,1734021053090,-2372.70852209,0.00025,30]
[345106819,1734021053099,-4914.26803634,0.00025,30]
[345106820,1734021053109,-1487.65441051,0.00025,60]
[345106821,1734021053118,-3191.14096868,0.00025,60]
[345106822,1734021053127,-673.68036059,0.00025,30]
[345106823,1734021053137,-250.0,0.00025,10]
[345106824,1734021053147,-3640.98,0.00025,120]
[345106825,1734021053156,-1000.0,0.00025,120]
[345106826,1734021053166,-4000.00000001,0.00025,2]
[345106827,1734021053175,-1000.0,0.00025,5]
[345106828,1734021053185,-294.78361043,0.00025,120]
[345106829,1734021053194,-1069.0963367,0.00025,120]
[345106830,1734021053204,-1133.0,0.00025,60]
[345106831,1734021053214,-23158.6863559,0.00025,120]
[345106832,1734021053223,-150.0,0.00025,2]
[345106833,1734021053233,-750.0,0.00025,2]
[345106834,1734021053243,-177.0,0.00025,2]
[345106835,1734021053252,-157.64096182,0.00025,10]
[345106836,1734021053262,-2110.0,0.00025,2]
[345106837,1734021053272,-924.58742575,0.00025,2]
[345106838,1734021053281,-3000.0,0.00025,10]
[345106839,1734021053291,-997.12,0.00025,2]
[345106840,1734021053300,-997.12,0.00025,2]
[345106841,1734021053310,-120556.00836074,0.00025,2]
[345106842,1734021053319,-102278.23073229,0.00025,2]
[345106843,1734021053329,-177.0,0.00025,2]
[345106844,1734021053339,-1589.95283172,0.00025,2]
[345106845,1734021053350,-254.18743449,0.00025,2]
[345106846,1734021053363,-158.0,0.00025,12]
[345106847,1734021053371,-176.0,0.00025,2]
[345106848,1734021053380,-150.0,0.00025,60]
[345106849,1734021053391,-2906.47189906,0.00025,2]
[345106850,1734021053400,-500.0,0.00025,2]
[345106851,1734021053410,-607.02547059,0.00025,2]
[345106852,1734021053419,-15096.30153267,0.00025,14]
[345106853,1734021053429,-200.01247286,0.00025,2]
[345106854,1734021053439,-9999.999999,0.00025,2]
[345106855,1734021053448,-500.0,0.00025,2]
[345106856,1734021053458,-500.0,0.00025,2]
[345106857,1734021053466,-332.284857,0.00025,7]
[345106858,1734021053475,-200.0,0.00025,2]
[345106859,1734021053485,-151.0,0.00025,7]
[345106860,1734021053495,-332.284857,0.00025,7]
[345106861,1734021053504,-538.772821,0.00025,7]
[345106862,1734021053514,-538.772821,0.00025,7]
[345106863,1734021053523,-211.183017,0.00025,7]
[345106864,1734021053533,-213.601405,0.00025,7]
[345106865,1734021053542,-213.601405,0.00025,7]
[345106866,1734021053552,-211.183017,0.00025,7]
[345106867,1734021053560,-151.0,0.00025,7]
[345106868,1734021053570,-930.4604854,0.00025002,2]
[345106869,1734021053579,-1901.9057397,0.00025002,2]
[345106870,1734021053589,-7119.3879629,0.00025019,2]
[345106871,1734021053598,-1000.0,0.00025036,30]
[345106872,1734021053608,-1000.0,0.0002508,30]
[345106873,1734021053617,-534.0,0.00025085,2]
[345106874,1734021053627,-3229.79291245,0.000251,2]
[345106875,1734021053637,-221.19,0.00025115,2]
[345106876,1734021053647,-500.0,0.00025121,2]
[345106877,1734021053657,-500.0,0.00025121,2]
[345106878,1734021053666,-500.0,0.00025121,2]
[345106879,1734021053676,-500.0,0.00025121,2]
[345106880,1734021053685,-558.05913959,0.00025121,2]
[345106881,1734021053694,-500.0,0.00025121,2]
[345106882,1734021053704,-500.0,0.00025121,2]
[345106883,1734021053713,-257.19874437,0.00025121,2]
[345106884,1734021053723,-198.36586592,0.00025121,2]
[345106885,1734021053732,-500.0,0.00025121,2]
[345106886,1734021053742,-500.0,0.00025121,2]
[345106887,1734021053752,-500.0,0.00025121,2]
[345106888,1734021053760,-500.0,0.00025121,2]
[345106889,1734021053769,-500.0,0.00025121,2]
[345106890,1734021053779,-364.21095898,0.00025121,2]
[345106891,1734021053789,-384.64534358,0.00025121,2]
[345106892,1734021053798,-500.0,0.00025121,2]
[345106893,1734021053808,-617.85324319,0.00025121,2]
[345106894,1734021053816,-500.0,0.00025121,2]
[345106895,1734021053825,-500.0,0.00025121,2]
[345106896,1734021053834,-500.0,0.00025121,2]
[345106897,1734021053845,-500.0,0.00025121,2]
[345106898,1734021053854,-741.15,0.00025121,2]
[345106899,1734021053864,-500.0,0.00025121,2]
[345106900,1734021053873,-500.0,0.00025121,2]
[345106901,1734021053883,-826.77,0.00025121,2]
[345106902,1734021053893,-500.0,0.00025121,2]
[345106903,1734021053903,-702.94,0.00025121,2]
[345106904,1734021053913,-500.0,0.00025121,2]
[345106905,1734021053922,-1000.0,0.00025124,30]
[345106906,1734021053932,-50000.000001,0.00025152,2]
[345106907,1734021053941,-1000.0,0.00025168,30]
[345106908,1734021053951,-500.0,0.00025172,2]
[345106909,1734021053961,-500.0,0.00025172,2]
[345106910,1734021053971,-500.0,0.00025172,2]
[345106911,1734021053980,-500.0,0.00025172,2]
[345106912,1734021053990,-509.6,0.00025172,2]
[345106913,1734021054000,-1832.99,0.00025172,2]
[345106914,1734021054009,-500.0,0.00025172,2]
[345106915,1734021054018,-376.66678124,0.00025172,2]
[345106916,1734021054028,-500.0,0.00025172,2]
[345106917,1734021054038,-500.0,0.00025172,2]
[345106918,1734021054047,-500.0,0.00025172,2]
[345106919,1734021054057,-500.0,0.00025172,2]
[345106920,1734021054066,-1243.07,0.00025172,2]
[345106921,1734021054076,-6531.9,0.00025172,120]
[345106922,1734021054086,-2766.6,0.00025172,2]
[345106923,1734021054095,-1213.55,0.00025172,2]
[345106924,1734021054105,-1235.3,0.00025172,2]
[345106925,1734021054114,-500.0,0.00025172,2]
[345106926,1734021054124,-500.0,0.00025172,2]
[345106927,1734021054133,-150.0,0.00025186,120]
[345106928,1734021054143,-387.04,0.00025197,2]
[345106929,1734021054152,-500.0,0.00025197,2]
[345106930,1734021054162,-500.0,0.00025197,2]
[345106931,1734021054172,-500.0,0.00025197,2]
[345106932,1734021054181,-500.0,0.00025197,2]
[345106933,1734021054190,-500.0,0.00025197,2]
[345106934,1734021054199,-500.0,0.00025197,2]
[345106935,1734021054209,-500.0,0.00025197,2]
[345106936,1734021054219,-195.04812605,0.00025197,2]
[345106937,1734021054228,-556.9,0.00025197,2]
[345106938,1734021054239,-974.95,0.00025197,2]
[345106939,1734021054247,-618.23,0.00025197,2]
[345106940,1734021054256,-500.0,0.00025197,2]
[345106941,1734021054266,-500.0,0.00025197,2]
[345106942,1734021054275,-500.0,0.00025197,2]
[345106943,1734021054284,-1720.1,0.00025197,2]
[345106944,1734021054293,-500.0,0.00025197,2]
[345106945,1734021054303,-500.0,0.00025197,2]
[345106946,1734021054313,-500.0,0.00025197,2]
[345106947,1734021054323,-500.0,0.00025197,2]
[345106948,1734021054332,-500.0,0.00025197,2]
[345106949,1734021054342,-500.0,0.00025197,2]
[345106950,1734021054352,-500.0,0.00025197,2]
[345106951,1734021054363,-750.8,0.00025197,2]
[345106952,1734021054372,-500.0,0.00025197,2]
[345106953,1734021054382,-650.98,0.00025197,2]
[345106954,1734021054392,-500.0,0.00025197,2]
[345106955,1734021054402,-631.19,0.00025197,2]
[345106956,1734021054411,-195.0592901,0.00025197,2]
[345106957,1734021054420,-500.0,0.00025197,2]
[345106958,1734021054429,-510.55673879,0.00025197,2]
[345106959,1734021054439,-649.78,0.00025197,2]
[345106960,1734021054448,-500.0,0.00025197,2]
[345106961,1734021054458,-2492.42,0.00025197,2]
[345106962,1734021054467,-500.0,0.00025197,2]
[345106963,1734021054477,-500.0,0.00025197,2]
[345106964,1734021054486,-500.0,0.00025197,2]
[345106965,1734021054496,-500.0,0.00025197,2]
[345106966,1734021054505,-500.0,0.00025197,2]
[345106967,1734021054515,-500.0,0.00025197,2]
[345106968,1734021054524,-500.0,0.00025197,2]
[345106969,1734021054533,-500.0,0.00025197,2]
[345106970,1734021054543,-2062.1,0.00025197,2]
[345106971,1734021054553,-500.0,0.00025197,2]
[345106972,1734021054563,-500.0,0.00025197,2]
[345106973,1734021054572,-500.0,0.00025197,2]
[345106974,1734021054736,-641.98590271,0.00025197,2]
[345106975,1734021054755,-1973.88,0.00025197,2]
[345106976,1734021054766,-500.0,0.00025197,2]
[345106977,1734021054777,-624.7,0.00025197,2]
[345106978,1734021054787,-500.0,0.00025197,2]
[345106979,1734021054796,-500.0,0.00025197,2]
[345106980,1734021054807,-500.0,0.00025197,2]
[345106981,1734021054817,-500.0,0.00025197,2]
[345106982,1734021054826,-500.0,0.00025197,2]
[345106983,1734021054835,-500.0,0.00025197,2]
[345106984,1734021054844,-500.0,0.00025197,2]
[345106985,1734021054854,-500.0,0.00025197,2]
[345106986,1734021054867,-500.0,0.00025197,2]
[345106987,1734021054876,-553.86,0.00025197,2]
[345106988,1734021054886,-500.0,0.00025197,2]
[345106989,1734021054895,-604.84328773,0.00025197,2]
[345106990,1734021054905,-1290.74,0.00025197,2]
[345106991,1734021054914,-500.0,0.00025197,2]
[345106992,1734021054924,-500.0,0.00025197,2]
[345106993,1734021054933,-501.73687063,0.00025197,2]
[345106994,1734021054944,-500.0,0.00025197,2]
[345106995,1734021054954,-1281.86,0.00025197,2]
[345106996,1734021054966,-500.0,0.00025197,2]
[345106997,1734021054976,-500.0,0.00025197,2]
[345106998,1734021054985,-500.0,0.00025197,2]
[345106999,1734021054995,-500.0,0.00025202,2]
[345107000,1734021055005,-630.96133369,0.00025202,2]
[345107001,1734021055015,-500.0,0.00025202,2]
[345107002,1734021055027,-500.0,0.00025202,2]
[345107003,1734021055036,-750.0,0.00025202,2]
[345107004,1734021055047,-500.0,0.00025202,2]
[345107005,1734021055057,-646.36,0.00025202,2]
[345107006,1734021055066,-625.17,0.00025202,2]
[345107007,1734021055075,-1306.31,0.00025202,2]
[345107008,1734021055084,-500.0,0.00025202,2]
[345107009,1734021055094,-1247.24,0.00025202,2]
[345107010,1734021055103,-500.0,0.00025202,2]
[345107011,1734021055113,-649.16,0.00025202,2]
[345107012,1734021055122,-796.67,0.00025202,2]
[345107013,1734021055132,-500.0,0.00025202,2]
[345107014,1734021055142,-500.0,0.00025202,2]
[345107015,1734021055151,-1236.73,0.00025202,2]
[345107016,1734021055161,-1078.44,0.00025202,2]
[345107017,1734021055171,-500.0,0.00025202,2]
[345107018,1734021055180,-500.0,0.00025202,2]
[345107019,1734021055190,-500.0,0.00025202,2]
[345107020,1734021055199,-600.0,0.00025202,2]
[345107021,1734021055209,-223.12089837,0.00025202,2]
[345107022,1734021055221,-987.01,0.00025205,2]
[345107023,1734021055230,-500.0,0.00025205,2]
[345107024,1734021055240,-1075.73,0.00025205,2]
[345107025,1734021055250,-1000.0,0.00025211,30]
[345107026,1734021055259,-200.0,0.0002525,2]
[345107027,1734021055269,-1000.0,0.00025255,30]
[345107028,1734021055279,-1963.05202227,0.00025256,7]
[345107029,1734021055288,-372.31,0.00025288,120]
[345107030,1734021055298,-5915.79414038,0.00025289,4]
[345107031,1734021055308,-5915.79414037,0.00025289,4]
[345107032,1734021055317,-1000.0,0.00025299,30]
[345107033,1734021055327,-280.0,0.000253,10]
[345107034,1734021055337,-1000.0,0.00025342,30]
[345107035,1734021055350,-534.0,0.00025359,2]
[345107036,1734021055359,-1000.0,0.00025386,30]
[345107037,1734021055368,-500.0,0.00025395,2]
[345107038,1734021055377,-500.0,0.00025395,2]
[345107039,1734021055387,-500.0,0.00025395,2]
[345107040,1734021055396,-500.0,0.00025395,2]
[345107041,1734021055405,-500.0,0.00025395,2]
[345107042,1734021055414,-500.0,0.00025395,2]
[345107043,1734021055423,-500.0,0.00025395,2]
[345107044,1734021055434,-500.0,0.00025395,2]
[345107045,1734021055443,-269.76769222,0.00025395,2]
[345107046,1734021055453,-500.0,0.00025395,2]
[345107047,1734021055462,-500.0,0.00025395,2]
[345107048,1734021055472,-500.0,0.00025395,2]
[345107049,1734021055482,-500.0,0.00025395,2]
[345107050,1734021055491,-500.0,0.00025395,2]
[345107051,1734021055501,-500.0,0.00025395,2]
[345107052,1734021055510,-500.0,0.00025395,2]
[345107053,1734021055519,-741.15,0.00025395,2]
[345107054,1734021055529,-500.0,0.00025395,2]
[345107055,1734021055539,-500.0,0.00025395,2]
[345107056,1734021055548,-826.77,0.00025395,2]
[345107057,1734021055557,-500.0,0.00025395,2]
[345107058,1734021055567,-702.94,0.00025395,2]
[345107059,1734021055575,-500.0,0.00025395,2]
[345107060,1734021055585,-662.99,0.00025419,2]
[345107061,1734021055594,-1000.0,0.0002543,30]
[345107062,1734021055603,-500.0,0.00025446,2]
[345107063,1734021055612,-500.0,0.00025446,2]
[345107064,1734021055622,-500.0,0.00025446,2]
[345107065,1734021055631,-500.0,0.00025446,2]
[345107066,1734021055641,-509.6,0.00025446,2]
[345107067,1734021055650,-1832.99,0.00025446,2]
[345107068,1734021055659,-500.0,0.00025446,2]
[345107069,1734021055669,-500.0,0.00025446,2]
[345107070,1734021055678,-503.45609238,0.00025446,2]
[345107071,1734021055688,-500.0,0.00025446,2]
[345107072,1734021055697,-500.0,0.00025446,2]
[345107073,1734021055707,-1243.07,0.00025446,2]
[345107074,1734021055716,-6531.9,0.00025446,120]
[345107075,1734021055726,-2766.6,0.00025446,2]
[345107076,1734021055735,-1213.55,0.00025446,2]
[345107077,1734021055744,-1235.3,0.00025446,2]
[345107078,1734021055754,-500.0,0.00025446,2]
[345107079,1734021055763,-500.0,0.00025446,2]
[345107080,1734021055772,-460.3521112,0.00025471,2]
[345107081,1734021055782,-500.0,0.00025471,2]
[345107082,1734021055792,-500.0,0.00025471,2]
[345107083,1734021055801,-500.0,0.00025471,2]
[345107084,1734021055810,-500.0,0.00025471,2]
[345107085,1734021055820,-500.0,0.00025471,2]
[345107086,1734021055829,-500.0,0.00025471,2]
[345107087,1734021055839,-556.9,0.00025471,2]
[345107088,1734021055848,-974.95,0.00025471,2]
[345107089,1734021055857,-618.23,0.00025471,2]
[345107090,1734021055867,-500.0,0.00025471,2]
[345107091,1734021055878,-500.0,0.00025471,2]
[345107092,1734021055887,-500.0,0.00025471,2]
[345107093,1734021055896,-1720.1,0.00025471,2]
[345107094,1734021055906,-500.0,0.00025471,2]
[345107095,1734021055915,-500.0,0.00025471,2]
[345107096,1734021055925,-500.0,0.00025471,2]
[345107097,1734021055934,-500.0,0.00025471,2]
[345107098,1734021055943,-500.0,0.00025471,2]
[345107099,1734021055952,-174.38808301,0.00025471,2]
[345107100,1734021055962,-500.0,0.00025471,2]
[345107101,1734021055971,-750.8,0.00025471,2]
[345107102,1734021055981,-500.0,0.00025471,2]
[345107103,1734021055990,-650.98,0.00025471,2]
[345107104,1734021055999,-500.0,0.00025471,2]
[345107105,1734021056009,-631.19,0.00025471,2]
[345107106,1734021056018,-500.0,0.00025471,2]
[345107107,1734021056028,-649.78,0.00025471,2]
[345107108,1734021056037,-500.0,0.00025471,2]
[345107109,1734021056047,-2492.42,0.00025471,2]
[345107110,1734021056056,-500.0,0.00025471,2]
[345107111,1734021056066,-500.0,0.00025471,2]
[345107112,1734021056075,-506.29008162,0.00025471,2]
[345107113,1734021056085,-500.0,0.00025471,2]
[345107114,1734021056095,-500.0,0.00025471,2]
[345107115,1734021056105,-507.43253057,0.00025471,2]
[345107116,1734021056114,-500.0,0.00025471,2]
[345107117,1734021056124,-500.0,0.00025471,2]
[345107118,1734021056134,-2062.1,0.00025471,2]
[345107119,1734021056143,-505.10897724,0.00025471,2]